Cogmind - Beta 14 @@@ ROGUE MODE // 2024.12.28 @ 20:44:02 Player: PTS Result: Destroyed by G-50 Soldier with Heavy Laser Performance ------------- Evolutions (4) 2000 Regions Visited (11) 2200 Robots Destroyed (76) 380 Value Destroyed (1988) 1988 Prototype IDs (17) 340 Alien Tech Used (0) 0 Bonus (1221) 1221 TOTAL SCORE: 8129 Bonus ------- High Alert Combat Kills 21 Entered Garrisons 200 Used RIF Installer 500 Entered DSFs 500 Cogmind --------- Core Integrity 0/850 Matter 60/300 Energy 94/100 System Corruption 5% Temperature Cool (27) Movement Core (200) Ox3 Location -6/Factory Parts ------- > --- POWER (2) -------- (None) > --- PROPULSION (3) --- (None) > --- UTILITY (7) ------ Improved Heat Sink Triangulator Advanced Reaction Control System Hacking Suite > --- WEAPON (3) ------- Flak Cannon > --- INVENTORY (5) ---- Energy Well (350) Energy Well (350) Improved Trap Scanner Triangulator Peak State ------------ > --- POWER ------------ Antimatter Reactor Antimatter Reactor > --- PROPULSION ------- Improved Medium Treads Heavy Treads > --- UTILITY ---------- Energy Well Improved Trap Scanner Advanced Sensor Array Weapon Cycler Hardened Light Armor Plating Hacking Suite System Shield > --- WEAPON ----------- Plasma Rifle Precision Phase Gun Gauss Rifle > --- INVENTORY -------- Flexi-carbon Leg Phase Gun Improved Plasma Cutter [Rating: 77] Favorites ----------- Power Improved Ion Engine Engine Improved Ion Engine Power Core Nuclear Core Reactor Antimatter Reactor Propulsion Hover Unit Treads Heavy Treads Leg Carbon-fiber Leg Wheel Compact Wheel Hover Unit Hover Unit Flight Unit Xenon Bombardment Thruster Utility Hacking Suite Device Weapon Cycler Storage Energy Well Hackware Hacking Suite Protection Hardened Light Armor Plating Weapon Improved EM Shotgun Energy Gun Improved EM Shotgun Energy Cannon EM Pulse Cannon Ballistic Gun Gauss Rifle Ballistic Cannon Flak Cannon Launcher Rocket Launcher Special Weapon Improved Plasma Cutter Special Melee Weapon Improved Datajack Build | -11 -10 -10 -9 -8 -8 -8 -7 -7 -6 -6 -6 ------- Run | Yrd Mat Min Mat Mat Gar Mat Fac DSF Fac Was Fac Slots Evolved 8 | . . . 2 2 . . 2 . 2 . . Power 1 | . . . . 1 . . . . . . . Propulsion 1 | . . . 1 . . . . . . . . Utility 5 | . . . 1 1 . . 1 . 2 . . Weapon 1 | . . . . . . . 1 . . . . Parts Attached 153 | 9 8 . 15 7 10 26 . 12 13 16 37 Power 18 | 1 1 . 4 1 1 2 . 2 1 2 3 Engine 14 | 1 1 . 4 1 1 . . 2 1 . 3 Core 2 | . . . . . . 2 . . . . . Reactor 2 | . . . . . . . . . . 2 . Propulsion 41 | 3 2 . 4 2 2 5 . 9 4 3 7 Treads 2 | . . . . . . . . . . 1 1 Leg 6 | . . . . . . . . . 1 . 5 Wheel 14 | 3 . . . . . . . 9 1 . 1 Hover 15 | . 2 . 4 2 2 2 . . 2 1 . Flight 4 | . . . . . . 3 . . . 1 . Utility 41 | 2 2 . 4 2 1 5 . 1 6 5 13 Device 26 | 2 1 . 3 1 1 2 . 1 5 2 8 Storage 2 | . . . . . . . . . . . 2 Processor . | . . . . . . . . . . . . Hackware 7 | . 1 . . . . 3 . . 1 1 1 Protection 6 | . . . 1 1 . . . . . 2 2 Artifact . | . . . . . . . . . . . . Weapon 53 | 3 3 . 3 2 6 14 . . 2 6 14 Energy Gun 25 | 2 3 . 3 1 3 5 . . 1 4 3 Energy Cannon 3 | . . . . . . 3 . . . . . Ballistic Gun 10 | 1 . . . . 2 . . . 1 2 4 Ballistic Cannon 4 | . . . . . . . . . . . 4 Launcher 3 | . . . . 1 1 1 . . . . . Special Weapon 3 | . . . . . . . . . . . 3 Impact Weapon . | . . . . . . . . . . . . Slashing Weapon . | . . . . . . . . . . . . Piercing Weapon . | . . . . . . . . . . . . Special Melee Weapon 5 | . . . . . . 5 . . . . . Unidentified Prototypes 4 | . . . 1 . . 1 . . 1 1 . Parts Lost 57 | 1 . . 2 . 6 5 . 10 8 1 24 Power 9 | . . . . . 1 . . 2 1 . 5 Propulsion 18 | 1 . . 1 . 2 2 . 4 4 . 4 Utility 15 | . . . . . 1 . . 3 3 1 7 Weapon 15 | . . . 1 . 2 3 . 1 . . 8 Highest Loss Streak 16 | 1 . . 2 . 6 3 . 7 6 1 16 To Critical Strikes . | . . . . . . . . . . . . Average Slot Usage (%) 82 | . 99 100 94 99 93 94 69 62 64 65 70 Engine 7 | . 14 14 10 17 17 6 . 7 5 . 2 Core 1 | . . . . . . 11 15 2 . . . Reactor 2 | . . . . . . . . . . 9 7 Treads 1 | . . . . . . . . . . 4 4 Leg 1 | . . . . . . . . . . . 5 Wheel 3 | . 24 . . . . . . 11 6 . . Hover 11 | . 3 28 28 27 24 17 15 6 8 1 . Device 16 | . 18 14 20 18 15 9 7 8 19 16 16 Storage 1 | . . . . . . . . . . . 6 Hackware 13 | . 9 14 11 9 9 24 23 23 12 14 9 Protection 2 | . . . 1 9 9 2 . . . 3 2 Energy Gun 12 | . 22 28 21 17 14 7 7 3 3 9 6 Ballistic Gun 2 | . 5 . . . 2 . . . 4 3 2 Peak Build Rating 77 | 9 9 9 19 24 26 37 30 31 42 68 77 Average Rating 32 | 5 8 9 17 22 23 31 30 23 31 55 55 On Entrance 19 | . 9 9 9 18 24 26 30 30 9 16 58 Naked Turns . | . . . . . . . . . . . . Heaviest Build 61 | 11 11 8 15 21 21 25 17 20 23 56 61 Greatest Support 100 | 32 32 12 25 29 29 25 18 32 20 70 100 Greatest Overweight (x) 5 | . 1 . 1 . 1 2 . 1 2 1 5 Average Overweight (x) . | . . . . . . . . . . . . Largest Inventory Capacity 5 | 5 5 5 5 5 5 5 5 5 5 5 5 Average Capacity 5 | 5 5 5 5 5 5 5 5 5 5 5 5 Most Carried 5 | 5 5 5 5 5 5 5 5 5 5 5 5 Average Carried 3 | 2 4 4 4 4 4 4 5 4 2 3 2 Final Capacity 5 | 5 5 5 5 5 5 5 5 5 5 5 5 Final Carried 5 | 4 5 5 5 5 5 5 5 5 4 3 4 Class Distribution -------------------- 46% | Scavenger-Mutant 27% | Hacker-Mutant 10% | Mutant 6% | Hacker-Tank 4% | Scavenger-Tank Dominant Class ---------------- Scavenger-Mutant | -10/Materials Scavenger-Mutant | -10/Mines Scavenger-Mutant | -9/Materials Scavenger-Mutant | -8/Materials Scavenger-Mutant | -8/Garrison Scavenger-Mutant | -8/Materials Scavenger-Mutant | -7/Factory Hacker-Mutant | -7/DSF Hacker-Mutant | -6/Factory Hacker-Mutant | -6/Waste Scavenger-Mutant | -6/Factory Resources | -11 -10 -10 -9 -8 -8 -8 -7 -7 -6 -6 -6 ----------- Run | Yrd Mat Min Mat Mat Gar Mat Fac DSF Fac Was Fac Matter Collected 1921 | 315 142 10 130 40 173 294 . 62 51 244 460 Remotely . | . . . . . . . . . . . . Salvage Created 2986 | 224 472 29 336 40 430 461 . . 106 21 867 Parts 176 | 16 48 3 25 2 27 22 . . 6 . 27 Haulers Intercepted 3 | . 1 . 2 . . . . . . . . Recyclers Shooed 2 | . . . . . . 1 . . . . 1 Parts Field Recycled . | . . . . . . . . . . . . Retrieved Matter . | . . . . . . . . . . . . Parts Self-Destructed . | . . . . . . . . . . . . Prevented . | . . . . . . . . . . . . Kills | -11 -10 -10 -9 -8 -8 -8 -7 -7 -6 -6 -6 ------- Run | Yrd Mat Min Mat Mat Gar Mat Fac DSF Fac Was Fac Combat Hostiles Destroyed 41 | . 9 . 3 . 9 6 . . 2 1 11 Guns 31 | . 9 . 3 . 9 1 . . 2 1 6 Cannons 6 | . . . . . . 3 . . . . 3 AOE 1 | . . . . . . 1 . . . . . Classes Destroyed 12 | 3 6 . . . 1 2 . . . . . Worker 8 | 2 3 . . . . 3 . . . . . Builder 6 | . 1 . 2 . . 2 . . . . 1 Tunneler 9 | 6 1 1 . . . 1 . . . . . Hauler 3 | . 1 . 2 . . . . . . . . Recycler 3 | 1 . . . . . . . . . . 2 Operator 1 | . 1 . . . . . . . . . . Watcher 5 | . 3 . 1 1 . . . . . . . Swarmer 14 | . 5 . . . 8 . . . . 1 . Grunt 18 | . 4 . 3 . . 4 . . 1 . 6 Duelist 2 | . . . . . . 1 . . . . 1 Hunter 3 | . . . . . . 1 . . . . 2 Programmer 4 | . . . . . 1 . . . 1 . 2 Best Kill Streak 4 | 4 4 1 2 1 4 4 . . 2 1 2 Combat Bots Only 4 | . 3 . 2 . 4 2 . . 2 1 2 Max Kills in Single Turn 2 | 1 2 1 1 1 2 1 . . 1 1 1 Gunslinging 1 | . 1 . . . . . . . . . . Exploded 1 | . . . . . . 1 . . . . . Melee . | . . . . . . . . . . . . Uniques/NPCs Destroyed . | . . . . . . . . . . . . Combat | -11 -10 -10 -9 -8 -8 -8 -7 -7 -6 -6 -6 -------- Run | Yrd Mat Min Mat Mat Gar Mat Fac DSF Fac Was Fac Hostile Shots Fired 457 | . 41 . 14 . 47 32 . 55 78 10 180 Missed 154 | . 9 . 5 . 15 13 . 23 31 3 55 Damage Taken 6061 | 34 298 . 344 15 422 399 . 700 1178 154 2517 Core 1501 | . 62 . 163 . 61 73 . 273 435 48 386 Absorbed by Shields . | . . . . . . . . . . . . Redirected to Shielding 29 | . . . . 2 22 5 . . . . . Regen/Repaired (Parts) 74 | . . . 74 . . . . . . . . Core Remaining (%) 74 | 100 . 75 59 . . 75 . 61 . . . Volleys Fired 275 | 14 53 3 16 2 27 43 . . 8 17 92 Largest 3 | 2 2 2 2 2 2 2 . . 2 3 3 Hottest 202 | 90 80 80 90 90 90 113 . . 98 202 197 Shots Fired 484 | 28 106 6 30 3 51 65 . . 16 43 136 Gun 410 | 28 106 6 30 2 50 45 . . 16 43 84 Cannon 58 | . . . . . . 20 . . . . 38 Launcher 2 | . . . . 1 1 . . . . . . Special 14 | . . . . . . . . . . . 14 Kinetic 145 | 10 24 . . . 2 . . . 8 17 84 Thermal 188 | 14 82 6 . . . . . . 8 26 52 Explosive 2 | . . . . 1 1 . . . . . . Electromagnetic 149 | 4 . . 30 2 48 65 . . . . . Robot Hit Streak 13 | 9 8 1 13 2 10 9 . . 2 6 10 Robot Miss Streak 6 | 4 3 2 5 2 4 6 . . 3 3 6 Penetration Max 1 | . . . . . . . . . . . 1 Secondary Targets 3 | . 1 . . . 2 . . . . . . Max Gunslinging Chain 1 | . 1 . . . 1 . . . . . . Shots Hit Robots 331 | 16 63 2 24 2 36 52 . . 6 29 101 Core Hits 143 | 10 29 1 14 2 21 18 . . 3 3 42 Critical Kills . | . . . . . . . . . . . . Critical Parts Destroyed 1 | . 1 . . . . . . . . . . Critical Strikes 12 | 1 5 . . . . 1 . . 1 1 3 Burn 9 | 1 4 . . . . . . . 1 . 3 Destroy 2 | . 1 . . . . . . . . 1 . Corrupt 1 | . . . . . . 1 . . . . . Melee Attacks 13 | . . . . . . 13 . . . . . Impact . | . . . . . . . . . . . . Slashing . | . . . . . . . . . . . . Piercing . | . . . . . . . . . . . . Sneak Attacks 9 | . . . . . . 9 . . . . . Combat Hostiles 5 | . . . . . . 5 . . . . . Follow-up Attacks . | . . . . . . . . . . . . Damage Inflicted 6132 | 247 776 23 524 32 639 917 . 11 120 731 2112 Guns 4510 | 193 776 23 411 32 416 460 . . 120 731 1348 Cannons 671 | . . . . . . 298 . . . . 373 Explosions 801 | 54 . . 113 . 223 159 . . . . 252 Melee . | . . . . . . . . . . . . Ramming 17 | . . . . . . . . 11 . . 6 Kinetic 1538 | 90 196 . . . 12 . . . 48 223 969 Thermal 2932 | 117 580 23 113 . 223 159 . . 72 508 1137 Explosive . | . . . . . . . . . . . . Electromagnetic 1645 | 40 . . 411 32 404 758 . . . . . Impact . | . . . . . . . . . . . . Slashing . | . . . . . . . . . . . . Piercing . | . . . . . . . . . . . . Highest Corruption 5 | . . . . . 3 3 . . . . 5 Average Corruption 3 | . . . . . 2 3 . . . . 3 Corruption Purged . | . . . . . . . . . . . . Corruption Blocked . | . . . . . . . . . . . . Effects 24 | . . . . . 4 17 . . . . 3 Message Errors 2 | . . . . . . 1 . . . . 1 Matter Fused 7 | . . . . . 3 3 . . . . 1 Heat Flow Errors 2 | . . . . . . 1 . . . . 1 Energy Discharges 3 | . . . . . 1 2 . . . . . Data Loss (minor) 3 | . . . . . . 3 . . . . . Data Loss (major) 1 | . . . . . . 1 . . . . . Misfires 4 | . . . . . . 4 . . . . . Alerts 2 | . . . . . . 2 . . . . . Overload Shots . | . . . . . . . . . . . . Overflow Damage 221 | 4 . . 84 . 52 12 . . . . 69 Projectiles . | . . . . . . . . . . . . Explosions 221 | 4 . . 84 . 52 12 . . . . 69 Melee . | . . . . . . . . . . . . Knockbacks 24 | . . . . . . . . . . . 24 Impact . | . . . . . . . . . . . . Kinetic 23 | . . . . . . . . . . . 23 Secondary 1 | . . . . . . . . . . . 1 Self-Inflicted Damage 547 | 34 . . 222 15 63 78 . 4 . . 131 Shots 10 | 1 . . 3 1 1 2 . . . . 2 Rammed 6 | . . . . . . . . 5 . . 1 Targets Rammed 8 | . . . . . . . . 5 . . 3 Kicked 2 | . . . . . . . . . . . 2 Crushed . | . . . . . . . . . . . . Highest Temperature 469 | 52 156 24 147 42 385 179 . . 140 319 469 Average Temperature 101 | 14 52 14 50 26 187 47 . . 50 102 161 Received Heat Transfer 1389 | . 78 . 63 . . 45 . . 357 . 846 Effects 15 | . . . . . 7 . . . . . 8 Shutdowns 8 | . . . . . 3 . . . . . 5 Energy Bleed 2 | . . . . . 1 . . . . . 1 Interference 2 | . . . . . . . . . . . 2 Matter Decay 1 | . . . . . 1 . . . . . . Short Circuit 1 | . . . . . 1 . . . . . . Damage (minor) 1 | . . . . . 1 . . . . . . Siege Activations . | . . . . . . . . . . . . Robots Corrupted 2 | . . . . . 1 1 . . . . . Combat Hostiles 1 | . . . . . . 1 . . . . . Parts Fried 10 | . . . 2 . 1 7 . . . . . Impact Corruptions . | . . . . . . . . . . . . Robots Melted 2 | . . . . . . . . . . . 2 Combat Hostiles 2 | . . . . . . . . . . . 2 Parts Melted 5 | 1 . . . . . 1 . . . . 3 Heat Transferred 5735 | 359 1750 50 100 . 250 200 . . 250 857 1919 Parts Sabotaged . | . . . . . . . . . . . . Parts Stolen . | . . . . . . . . . . . . Parts Stripped . | . . . . . . . . . . . . Power Chain Reactions 8 | 1 . . 1 . 3 3 . . . . . Alert | -11 -10 -10 -9 -8 -8 -8 -7 -7 -6 -6 -6 ------- Run | Yrd Mat Min Mat Mat Gar Mat Fac DSF Fac Was Fac Peak Influence 434 | 40 212 51 226 266 434 376 112 95 80 21 194 Initial 197 | . 26 46 19 94 172 197 112 80 12 . . Average 91 | 22 101 47 67 147 302 259 112 76 24 9 22 Maximum Alert Level 2 | . 1 . 1 1 2 1 . . . . . Low Security (%) 85 | 100 96 100 96 89 27 30 100 100 100 100 100 Level 1 13 | . 3 . 3 10 44 69 . . . . . Level 2 1 | . . . . . 27 . . . . . . Level 3 . | . . . . . . . . . . . . Level 4 . | . . . . . . . . . . . . Level 5 . | . . . . . . . . . . . . High Security . | . . . . . . . . . . . . Max Security . | . . . . . . . . . . . . Squads Dispatched 15 | . 3 . 2 3 . 2 . 1 2 . 2 Investigation 9 | . 1 . 2 3 . 2 . . 1 . . Extermination 2 | . . . . . . . . . 1 . 1 Reinforcement 4 | . 2 . . . . . . 1 . . 1 Assault . | . . . . . . . . . . . . Garrison . | . . . . . . . . . . . . Intercept . | . . . . . . . . . . . . Searches Triggered . | . . . . . . . . . . . . Construction Impeded . | . . . . . . . . . . . . Haulers Reinforced 1 | . . . . . . . . . . . 1 Active Scanning Responses . | . . . . . . . . . . . . Cargo Convoy Interrupts . | . . . . . . . . . . . . Stealth | -11 -10 -10 -9 -8 -8 -8 -7 -7 -6 -6 -6 --------- Run | Yrd Mat Min Mat Mat Gar Mat Fac DSF Fac Was Fac Distress Signals 4 | . 2 . . . . 1 . . . . 1 Communications Jammed . | . . . . . . . . . . . . Distress Signals . | . . . . . . . . . . . . Times Spotted 94 | . 17 . 6 1 9 12 . 6 20 4 19 Peak Tracking Total 9 | . 4 . 3 5 5 4 . 6 9 2 5 Tactical Retreats 13 | . 1 . 2 2 . 1 . 3 2 2 . Traps | -11 -10 -10 -9 -8 -8 -8 -7 -7 -6 -6 -6 ------- Run | Yrd Mat Min Mat Mat Gar Mat Fac DSF Fac Was Fac Traps Triggered 5 | . . . . 1 2 . . 1 1 . . Indirectly . | . . . . . . . . . . . . Trap Hack Attempts . | . . . . . . . . . . . . Triggered . | . . . . . . . . . . . . Disarmed . | . . . . . . . . . . . . Reprogrammed . | . . . . . . . . . . . . Reused . | . . . . . . . . . . . . Traps Extracted . | . . . . . . . . . . . . Installed . | . . . . . . . . . . . . Triggered . | . . . . . . . . . . . . Machines | -11 -10 -10 -9 -8 -8 -8 -7 -7 -6 -6 -6 ---------- Run | Yrd Mat Min Mat Mat Gar Mat Fac DSF Fac Was Fac Machines Disabled 9 | . . . 2 2 1 . . . . . 4 Max in Single Turn 2 | . . . 2 1 1 . . . . . 2 Garrison Relay 1 | . . . . . 1 . . . . . . Machines Repaired . | . . . . . . . . . . . . Machines Dismantled . | . . . . . . . . . . . . Machines Sabotaged . | . . . . . . . . . . . . Overloaded Fab Kills . | . . . . . . . . . . . . Hacking | -11 -10 -10 -9 -8 -8 -8 -7 -7 -6 -6 -6 --------- Run | Yrd Mat Min Mat Mat Gar Mat Fac DSF Fac Was Fac Machines Accessed 26 | . 4 . 5 4 1 6 1 . 4 . 1 Terminals 19 | . 4 . 2 3 1 4 1 . 4 . . Fabricators 1 | . . . . . . . . . . . 1 Repair Stations 1 | . . . 1 . . . . . . . . Recycling Units 2 | . . . 1 . . 1 . . . . . Scanalyzers 2 | . . . 1 . . 1 . . . . . Garrison Access 1 | . . . . 1 . . . . . . . Total Hacks 71 | . 14 . 15 10 1 18 1 . 11 . 1 Successful 43 | . 6 . 11 7 . 12 1 . 5 . 1 Failed 27 | . 7 . 4 3 1 6 . . 6 . . Catastrophic 8 | . 2 . 1 1 . 3 . . 1 . . Database Lockouts 1 | . 1 . . . . . . . . . . Manual 41 | . 13 . 3 7 1 10 . . 7 . . Terminals 52 | . 14 . 4 9 1 12 1 . 11 . . Fabricators 1 | . . . . . . . . . . . 1 Repair Stations 4 | . . . 4 . . . . . . . . Recycling Units 5 | . . . 4 . . 1 . . . . . Scanalyzers 8 | . . . 3 . . 5 . . . . . Garrison Access 1 | . . . . 1 . . . . . . . Terminal Hacks 25 | . 6 . 2 6 . 6 1 . 4 . . Prototype ID Bank 7 | . 2 . 1 2 . 2 . . . . . Open DSF 2 | . . . . . . . 1 . 1 . . Terminal Index 4 | . 1 . . 1 . 1 . . 1 . . Fabricator Index 1 | . . . . . . 1 . . . . . Repair Station Index 2 | . . . . 1 . 1 . . . . . Alert Level 1 | . . . . . . . . . 1 . . Unreport Threat 2 | . 1 . . . . . . . 1 . . Locate Traps 2 | . 1 . . . . 1 . . . . . Hauler Manifests 2 | . . . 1 1 . . . . . . . Zone Layout 2 | . 1 . . 1 . . . . . . . Fabricator Hacks 1 | . . . . . . . . . . . 1 Build 1 | . . . . . . . . . . . 1 Repair Station Hacks 4 | . . . 4 . . . . . . . . Scan Component 2 | . . . 2 . . . . . . . . Repair 2 | . . . 2 . . . . . . . . Recycling Unit Hacks 3 | . . . 2 . . 1 . . . . . Report Inventory 2 | . . . 1 . . 1 . . . . . Retrieve Components 1 | . . . 1 . . . . . . . . Scanalyzer 8 | . . . 3 . . 5 . . . . . Insert Component 4 | . . . 2 . . 2 . . . . . Analyze 4 | . . . 1 . . 3 . . . . . Garrison Access Hacks 1 | . . . . 1 . . . . . . . Unlock Access 1 | . . . . 1 . . . . . . . Unauthorized Hacks 1 | . . . . . . . . . 1 . . Terminals 1 | . . . . . . . . . 1 . . Sabotage 1 | . . . . . . . . . 1 . . Fabricators . | . . . . . . . . . . . . Repair Stations . | . . . . . . . . . . . . Recycling Units . | . . . . . . . . . . . . Scanalyzers . | . . . . . . . . . . . . Garrison Access . | . . . . . . . . . . . . Data Cores Recovered . | . . . . . . . . . . . . Used . | . . . . . . . . . . . . Hacking Detections 16 | . 4 . 2 2 . 5 . . 2 . 1 Full Trace Events 11 | . 3 . 2 2 . 4 . . . . . Feedback Events . | . . . . . . . . . . . . Feedback Blocked . | . . . . . . . . . . . . Robot Schematics Acquired . | . . . . . . . . . . . . Robots Built . | . . . . . . . . . . . . Authchips . | . . . . . . . . . . . . Time . | . . . . . . . . . . . . Total Robot Build Rating . | . . . . . . . . . . . . Part Schematics Acquired 3 | . . . 1 . . 2 . . . . . Parts Built 2 | . . . . . . . . . . . 2 Authchips . | . . . . . . . . . . . . Time 53 | . . . . . . . . . . . 53 Total Part Build Rating 12 | . . . . . . . . . . . 12 Parts Repaired 2 | . . . 2 . . . . . . . . Time 64 | . . . 64 . . . . . . . . Parts Recycled . | . . . . . . . . . . . . Recycled Matter . | . . . . . . . . . . . . Retrieved Matter . | . . . . . . . . . . . . Retrieved Components 8 | . . . 8 . . . . . . . . Parts Scanalyzed 3 | . . . 1 . . 2 . . . . . Part Schematics Acquired 3 | . . . 1 . . 2 . . . . . Parts Damaged . | . . . . . . . . . . . . Bothacking | -11 -10 -10 -9 -8 -8 -8 -7 -7 -6 -6 -6 ------------ Run | Yrd Mat Min Mat Mat Gar Mat Fac DSF Fac Was Fac Used RIF Installer 1 | . . . . . 1 . . . . . . Robots Hacked 6 | . . . . . . 6 . . . . . Non-combat 3 | . . . . . . 3 . . . . . Combat 3 | . . . . . . 3 . . . . . Robot Hacks Applied 8 | . . . . . . 8 . . . . . drop_inventory 1 | . . . . . . 1 . . . . . find_station 1 | . . . . . . 1 . . . . . spike_heat 1 | . . . . . . 1 . . . . . go_dormant 1 | . . . . . . 1 . . . . . overwrite_iff 1 | . . . . . . 1 . . . . . formatsys_low 2 | . . . . . . 2 . . . . . formatsys_high 1 | . . . . . . 1 . . . . . Relay Couplers Released 8 | . . . . . 8 . . . . . . Machine Destruction 4 | . . . . . 4 . . . . . . Programmers 4 | . . . . . 4 . . . . . . Attached 3 | . . . . . . 2 . . . 1 . Fabnet Peak Effective % . | . . . . . . . . . . . . Robots Rewired . | . . . . . . . . . . . . Allies Hacked . | . . . . . . . . . . . . Hacks Repelled . | . . . . . . . . . . . . Allies | -11 -10 -10 -9 -8 -8 -8 -7 -7 -6 -6 -6 -------- Run | Yrd Mat Min Mat Mat Gar Mat Fac DSF Fac Was Fac Total Allies 4 | . . . . . . 4 . . . . . Largest Group 2 | . . . . . . 2 . . . . . Highest-Rated Group 26 | . . . . . . 26 . . . . . Highest-Rated Ally 16 | . . . . . . 16 . . . . . Total Orders 2 | . . . . . . 1 . . 1 . . AID 1 | . . . . . . 1 . . . . . EXPLORE 1 | . . . . . . . . . 1 . . Ally Attacks 7 | . . . . . . 7 . . . . . Total Damage 77 | . . . . . . 77 . . . . . Kills . | . . . . . . . . . . . . Allies Corrupted . | . . . . . . . . . . . . Allies Melted . | . . . . . . . . . . . . Intel | -11 -10 -10 -9 -8 -8 -8 -7 -7 -6 -6 -6 ------- Run | Yrd Mat Min Mat Mat Gar Mat Fac DSF Fac Was Fac Robot Analysis Total . | . . . . . . . . . . . . Derelict Logs Recovered . | . . . . . . . . . . . . Drone Launches 2 | . . . . . . . . . 2 . . Drone Recoveries . | . . . . . . . . . . . . Exploration | -11 -10 -10 -9 -8 -8 -8 -7 -7 -6 -6 -6 ------------- Run | Yrd Mat Min Mat Mat Gar Mat Fac DSF Fac Was Fac Turns Passed 4874 | 237 554 127 673 149 308 640 18 105 449 628 986 Spaces Moved 3373 | 97 352 184 401 246 267 519 33 96 346 459 373 Core 31 | 3 . . . . . . . . 8 12 8 Treads 393 | . . . . . . . . . . 241 152 Legs 213 | . . . . . . . . . . . 213 Wheels 555 | 94 311 . . . . . . 51 99 . . Hover 2055 | . 41 184 401 246 267 393 33 45 239 206 . Flight 126 | . . . . . . 126 . . . . . Fastest Speed 34 | 50 56 56 52 52 52 34 56 56 50 50 120 Average Speed 87 | 98 95 56 58 52 55 61 56 83 108 107 164 Slowest Speed 300 | 100 125 56 116 52 120 200 56 116 175 160 300 Overloaded Moves . | . . . . . . . . . . . . Propulsion Burnouts . | . . . . . . . . . . . . Robots Hopped . | . . . . . . . . . . . . Cave-ins Triggered . | . . . . . . . . . . . . Exploration Rate (%) 33 | 4 50 36 35 20 32 29 1 81 11 96 8 Regions Visited 11 Branch Regions 1 Pre-discovered Areas . | . . . . . . . . . . . . Known Exits Taken 2 | . . . . 1 . . 1 . . . . Unknown Exits Taken 5 | 1 1 1 1 . . 1 . . . . . Scrap Searched 1 | . . 1 . . . . . . . . . Spaces Dug 8 | . . . . 8 . . . . . . . Terrain Destroyed 140 | 6 . . 45 8 5 20 . . . 1 55 Melee . | . . . . . . . . . . . . Projectile 2 | . . . . . . . . . . 1 1 AOE 138 | 6 . . 45 8 5 20 . . . . 54 Terrain Rammed . | . . . . . . . . . . . . Walls Destroyed . | . . . . . . . . . . . . Machines Disabled . | . . . . . . . . . . . . Actions | -11 -10 -10 -9 -8 -8 -8 -7 -7 -6 -6 -6 --------- Run | Yrd Mat Min Mat Mat Gar Mat Fac DSF Fac Was Fac Total 4870 | 210 475 203 809 266 377 777 32 121 408 564 628 Wait 849 | 79 40 11 359 . 41 149 . . 30 58 82 Move 3363 | 96 351 183 400 245 266 518 32 95 346 458 373 Hop . | . . . . . . . . . . . . Pick Up 105 | 12 9 3 9 5 7 12 . 4 8 6 30 Fast Attach 28 | . 3 . 6 1 3 6 . 2 1 5 1 Attach 86 | 8 1 . 5 2 4 8 . 3 11 11 33 Detach 14 | . . . 1 . 1 1 . . 2 5 4 Swap 39 | 1 4 . 4 4 3 12 . 7 1 . 3 Drop 70 | . 14 3 9 7 5 15 . 5 1 4 7 Fire 275 | 14 53 3 16 2 27 43 . . 8 17 92 Melee 13 | . . . . . . 13 . . . . . Ram 6 | . . . . . . . . 5 . . 1 Kick 2 | . . . . . . . . . . . 2 Crush . | . . . . . . . . . . . . Escape Stasis 20 | . . . . . 20 . . . . . . Rewire . | . . . . . . . . . . . . Trap . | . . . . . . . . . . . . Miscellaneous . | . . . . . . . . . . . . Route ------- -11/Scrapyard -10/Materials (discovered 2 exits: Mat / [*Min]) -10/Mines (discovered 2 exits: *Mat x2) -9/Materials -8/Materials -8/Garrison -8/Materials -7/Factory (discovered 2 exits: [*Low] / DSF) -7/DSF -6/Factory -6/Waste -6/Factory (discovered 2 exits: [*Fac] / [*Low]) History --------- Turn | Location | Event 9 | -11/Scrapyard | Discovered new exit (range 16) 238 | -11/Scrapyard | Entered Materials 306 | -10/Materials | Build established: Mutant 566 | -10/Materials | Discovered new exit (range 18) 572 | -10/Materials | Central database locked down 680 | -10/Materials | Discovered new exit (range 13) 707 | -10/Materials | Build established: Scavenger-Mutant 792 | -10/Materials | Entered Mines 813 | -10/Mines | Discovered new exit (range 11) 839 | -10/Mines | Received a Rocket Launcher from a helpful Derelict 861 | -10/Mines | Found a hidden stash of uninstalled traps 887 | -10/Mines | Discovered new exit (range 9) 919 | -10/Mines | Entered Materials 919 | -9/Materials | Evolved 2 slots: Propulsion x1, Utility x1 1044 | -9/Materials | Repaired Imp. Hover Unit 1078 | -9/Materials | Repaired Imp. Ion Engine 1535 | -9/Materials | Discovered new exit (range 5) 1592 | -9/Materials | Entered another Materials area 1592 | -8/Materials | Evolved 2 slots: Power x1, Utility x1 1737 | -8/Materials | Identified exit to Garrison 1741 | -8/Materials | Entered Garrison 1817 | -8/Garrison | Installed Relay Interface Framework 1822 | -8/Garrison | Triggered checkpoint 1920 | -8/Garrison | Triggered checkpoint 1935 | -8/Garrison | Triggered checkpoint 2014 | -8/Garrison | Lost 6 parts (1p2n1u2w) 2043 | -8/Garrison | Discovered new exit (range 12) 2049 | -8/Garrison | Entered Materials 2686 | -8/Materials | Lost 3 parts (1n2w) 2687 | -8/Materials | Discovered new exit (range 4) 2689 | -8/Materials | Entered Factory 2689 | -7/Factory | Evolved 2 slots: Utility x1, Weapon x1 2706 | -7/Factory | Discovered new exit (range 13) 2707 | -7/Factory | Identified exit to DSF 2707 | -7/Factory | Entered DSF 2736 | -7/DSF | Additional patrols routed to DSF 2789 | -7/DSF | Lost 3 parts (1p1n1w) 2798 | -7/DSF | Discovered new exit (range 12) 2812 | -7/DSF | Entered Factory 2812 | -6/Factory | Evolved 2 slots: Utility x2 2843 | -6/Factory | Lost 7 parts (1p3n3u) 3016 | -6/Factory | Build established: Hacker-Mutant 3261 | -6/Factory | Discovered new exit (range 16) 3261 | -6/Factory | Sucked down chute 3261 | -6/Factory | Entered Waste 3261 | -6/Waste | The area was eerily silent 3262 | -6/Waste | Core integrity fell below 50% 3290 | -6/Waste | Lost 6 parts (1p3n2u) 3491 | -6/Waste | A Compactor rumbled back to life 3491 | -6/Waste | Spotted C-40 Crusher 3574 | -6/Waste | Discovered new exit (range 13) 3721 | -6/Waste | A Compactor rumbled back to life 3721 | -6/Waste | Spotted C-40 Crusher 3721 | -6/Waste | Crushed by Compactor (0 parts destroyed, 2 dropped) 3889 | -6/Waste | Entered Factory 4067 | -6/Factory | Fabricated Imp. Plasma Cutter (x2) 4520 | -6/Factory | Core integrity fell below 20% 4558 | -6/Factory | Lost 16 parts (3p2n4u7w) 4660 | -6/Factory | Discovered new exit (range 13) 4749 | -6/Factory | Discovered new exit (range 16) 4875 | -6/Factory | Destroyed by G-50 Soldier with Heavy Laser Last Messages --------------- 04856_ C-30 ARC bursts open, deploying its payload. 04856_ G-67 Veteran unfolds itself. 04856_ G-50 Soldier unfolds itself. 04858_ K-01 Serf collects debris. 04859_ Dropped Flak Cannon. 04861_ K-01 Serf collects debris. 04862_ Kicked K-01 Serf. 04863_ Kicked G-50 Soldier. 04864_ R-10 Processor collects Flak Cannon. 04864_ Carbon-fiber Leg destroyed. 04865_ D3FA3KMSJG:EMWPQ3NSFEG0N 04865_ Slammed into G-50 Soldier. 04867_ R-10 Processor collects Flak Cannon. 04868_ G-67 Veteran knocked back. 04870_ G-50 Soldier knocked back. 04872_ Lgt. Angular Momentum Engine destroyed. 04872_ G-50 Soldier knocked back. 04875_ Critical hit (Burn: +37). [Achievement: Just Browsing] Map ----- +----------------------------------------------------+ | ?????????????????????????????????????????????????? | | ?????????????????????????????????????????????????? | | ?????????????????????????????????????????????????? | | ?????????????????????????????????????????????????? | | ?????????????????????????????????????????????????? | | ?????????????????????????????????????????????????? | | ????????? ?????????????????????????????????????? | | ????????+ #????????????????????????????????????? | | ????????# #????????????????????????????????????? | | ????????# #????????????????????????????????????? | | ??#+##### #????????????????????????????????????? | | ?? [#????????????????????????????????????? | | ?? #????????????????????????????????????? | | ??? // #????????????????????????????????????? | | ???# / +????????????????????????????????????? | | ???# #????????????????????????????????????? | | ???# "" #????????????????????????????????????? | | ???# "F ##?????#######???????????????????????? | | #### """ ####### ##### ####??????????????? | | """ % ??????????????? | | < ?????????????? | | ! ??????????????? | | ######## ####### ######??????????????????? | | #??##+####?????## ###########??????????????? | | #???????????????# # #??????????????? | | #???????????????# #@ #??????????????? | | #####???????????????# g g #??????????????? | | ???#####????????????# g# """ """ #??????????????? | | ?? #????????????# # """ """ #??????????????? | | ? ###+##???????# #g""" """ ???????????????? | | ? ?????? # ????????????????? | | < ???? # ????????????????? | | ??? #########????????????????? | | #???????? ########????????????????????????? | | #??????? ?????????????????????????????????? | | ########?????? ??????????????????????????????????? | | ?????????????#???????????????????????????????????? | | ?????????????????????????????????????????????????? | | ?????????????????????????????????????????????????? | | ?????????????????????????????????????????????????? | | ????????????????????????????????????????????????? | | ???????????????????????????????????????????????? | | ???????????????????????????????????????????????? | | ?##??????????????????????????????????????????????? | | ?????????????????????????????????????????????????? | | ?????????????????????????????????????????????????? | | ?????????????????????????????????????????????????? | | ?????????????????????????????????????????????????? | | ?????????????????????????????????????????????????? | | ?????????????????????????????????????????????????? | +----------------------------------------------------+ Best States ------------- Heat Dissipation 64 Energy Generation 37 Energy Capacity 900 Matter Stores 300 Matter Capacity 300 Sight Range 16 Robot Scan Range 16 Terrain Scan Range 20 Terrain Scan Density 10 Power Amplification 20 Additional Mass Support 9 Armor Coverage 150 Power Shielding 33 Weapon Cycling 15 Phase Shifting 10 Evasion (%) 67 Recoil Reduction 3 Offensive Hacking 20 Defensive Hacking 10 Relay Coupler Types 1 Relay Coupler Value 31 Item Schematics ----------------- Imp. Hover Unit | -9/Materials | Scanalyzed Gravmag System | -8/Materials | Scanalyzed Arc Projector | -8/Materials | Scanalyzed Robot Schematics ------------------ None Fabricated ------------ Imp. Plasma Cutter | x2 | -6/Factory | Preloaded Alien Tech Used ----------------- None Achievements -------------- Assimilation Complete Just Browsing Universal Adapter root@ Challenges ------------ None Game ------ Seed MetafiberLaserTorch Manual? 0 Play Time 01:07:07 Cumulative 19.0 hours Start 2024.12.28 @ 19:37:46 End 2024.12.28 @ 20:44:02 Sessions 1 Manual Loads 0 Difficulty Rogue Special Mode None Game No. 31 Rogue 31 Adventurer 0 Explorer 0 Win Type - Total 0 Types 0/0/0/0/0/0/0/0/0 Lore% 12 Gallery% 25 Achievement% 24 Wizard Run 0 Options --------- Layout 1 ASCII 0 Keyboard 0 Movement Mouse Keybinds 0 Fullscreen 1 Font 24/Smallcaps Map View 50x35 Zoom Use 0% Tactical HUD 1 Map Filters NONE Filters NONE Steam 1 RUN: 9c97351f-9aa8-4ef0-8b24-f23099f2001e